bitfinex/quotes_ETHUSD_20230703
["timestamp","ask_amount","ask_price","bid_price","bid_amount"]
[1688361616025,4.3592,1951.8,1951.4,20.76816]
[1688361616227,4.3592,1951.8,1951.4,23.32694816]
[1688361616996,4.3592,1951.8,1951.4,17.93194816]
[1688361617237,4.3592,1951.8,1951.4,23.32694816]
[1688361617440,4.3592,1951.8,1951.4,17.93194816]
[1688361617646,4.3592,1951.8,1951.5,1.79319482]
[1688361617854,4.3592,1951.8,1951.6,12.81]
[1688361618941,15.91014,1951.8,1951.4,5.12442]
[1688361619140,1.314,1951.7,1951.4,5.12442]
[1688361619333,6.43786,1951.7,1951.4,10.24894]
[1688361620348,6.43786,1951.7,1951.4,12.8112]
[1688361620847,1.314,1951.7,1951.4,12.8112]
[1688361621847,1.314,1951.6,1951.4,5.12442]
[1688361622247,1.314,1951.6,1951.4,5.1245]
[1688361622248,6.43803,1951.6,1951.4,5.1245]
[1688361622945,6.43803,1951.6,1951.4,5.5286652]
[1688361623638,5.12402,1951.6,1951.4,10.6531852]
[1688361623806,6.43802,1951.6,1951.4,10.6531852]
[1688361624008,1.314,1951.6,1951.4,10.6531852]
[1688361624445,6.43801,1951.6,1951.4,10.6531852]
[1688361625205,4.3592,1951.8,1951.4,14.53700072]
[1688361626051,4.3592,1951.8,1951.4,13.2154452]
[1688361626235,5.6732,1951.8,1951.4,13.2154452]
[1688361626431,10.79669,1951.8,1951.4,13.2154452]
[1688361628709,10.79669,1951.8,1951.5,3.0]
[1688361628710,2.2917,1951.8,1951.5,3.0]
[1688361629020,2.2917,1951.8,1951.6,13.11]
[1688361630724,3.6017,1951.8,1951.6,12.81]
[1688361632152,8.72519,1951.8,1951.6,5.124]
[1688361633654,3.6017,1951.8,1951.6,10.248]
[1688361633955,3.6017,1951.8,1951.6,12.81]
[1688361634653,2.2917,1951.8,1951.6,12.81]
[1688361635952,2.2917,1951.8,1951.6,14.391]
[1688361649430,2.2917,1951.8,1951.6,12.81]
[1688361649777,2.2917,1951.8,1951.6,10.248]
[1688361650632,2.2917,1951.8,1951.6,5.124]
[1688361650833,7.41523,1951.8,1951.5,13.24829]
[1688361660885,7.41523,1951.8,1951.5,8.12414]
[1688361662810,8.71923,1951.8,1951.5,8.12414]
[1688361663704,7.41523,1951.8,1951.5,8.12414]
[1688361665976,7.41523,1951.8,1951.4,0.4041652]
[1688361665977,4.55878816,1951.7,1951.4,0.4041652]
[1688361666250,2.0,1951.5,1951.0,5.12552]
[1688361666409,12.28614,1951.4,1950.9,10.25143]
[1688361666609,14.49724,1951.4,1951.0,1.025143]
[1688361666940,9.37259,1951.4,1951.0,11.276103]
[1688361667138,9.37259,1951.4,1951.0,11.54384271]
[1688361668015,9.37259,1951.4,1951.0,14.10662271]
[1688361668850,14.49724,1951.4,1951.0,14.10662271]
[1688361669059,14.49724,1951.4,1951.0,6.41827271]
[1688361669726,14.49724,1951.4,1951.0,11.54384271]
[1688361670356,14.49724,1951.4,1951.0,6.41827271]
[1688361670658,17.0595,1951.4,1951.0,5.39312971]
[1688361671014,17.0595,1951.4,1951.0,10.51869971]
[1688361671210,17.0595,1951.4,1951.0,5.39312971]
[1688361672028,17.0595,1951.4,1951.0,5.12539]
[1688361673391,2.5743119,1951.3,1950.9,3.40163737]
[1688361673573,2.5743119,1951.3,1950.9,0.40163737]
[1688361673574,12.81272,1951.2,1950.9,0.40163737]
[1688361673781,3.314,1951.1,1950.6,5.12653]
[1688361673934,12.20721,1951.0,1950.6,5.12661]
[1688361674134,12.20721,1951.0,1950.6,5.54565405]
[1688361674380,14.76999,1951.0,1950.6,5.54565405]
[1688361674533,0.02747247,1950.9,1950.6,5.54565405]
[1688361674734,5.1261,1950.8,1950.6,5.54565405]
[1688361674964,10.25195,1950.9,1950.6,10.67227405]
[1688361675150,5.12595,1950.9,1950.6,10.67227405]
[1688361675350,10.25195,1950.9,1950.6,10.67227405]
[1688361675681,0.02658311,1950.8,1950.6,10.67227405]
[1688361675980,5.12595,1950.9,1950.6,13.23558405]
[1688361678476,7.08145,1951.0,1950.6,15.33218623]
[1688361681663,7.08145,1951.0,1950.6,14.01818623]
[1688361683249,12.20711,1951.0,1950.6,14.01818623]
[1688361683452,12.20711,1951.0,1950.6,10.94001376]
[1688361683675,12.20711,1951.0,1950.6,10.67227405]
[1688361685188,14.76989,1951.0,1950.6,5.54565405]
[1688361685394,14.76989,1951.0,1950.6,10.67227405]
[1688361687911,14.76989,1951.0,1950.6,13.23558405]
[1688361687912,1.9558,1951.0,1950.6,13.23558405]
[1688361688200,1.9558,1951.0,1950.8,10.2522]
[1688361694858,1.9558,1951.0,1950.8,5.1261]
[1688361695201,7.08138,1951.0,1950.7,5.12623]
[1688361695509,12.20696,1951.0,1950.7,5.12623]
[1688361697004,14.76974,1951.0,1950.6,0.41904405]
[1688361697304,14.76974,1951.0,1950.5,8.12674]
[1688361698503,14.76974,1951.0,1950.5,8.53833234]
[1688361705798,1.311,1950.9,1950.5,3.41159234]
[1688361706009,1.311,1950.9,1950.5,0.41159234]
[1688361706010,2.0,1950.7,1950.5,0.41159234]
[1688361706332,15.37533816,1950.6,1949.9,9.09640216]
[1688361706607,15.37533816,1950.6,1950.0,6.01948311]
[1688361706608,19.51733816,1950.6,1950.0,6.01948311]
[1688361706772,19.51733816,1950.6,1950.0,1.38019053]
[1688361706773,2.0,1950.5,1950.0,1.38019053]
[1688361707065,10.28578944,1950.4,1949.9,11.97270258]
[1688361707232,7.10000944,1950.4,1949.9,12.3871041]
[1688361707616,12.22715944,1950.4,1949.9,12.3871041]
[1688361707854,1.97272944,1950.4,1949.9,11.0701041]
[1688361708015,7.09988944,1950.4,1950.0,8.128]
[1688361708215,7.09988944,1950.4,1950.0,13.2562]
[1688361709229,12.22704944,1950.4,1950.0,8.128]
[1688361711025,12.22704944,1950.4,1950.0,13.2562]
[1688361711588,12.22704944,1950.4,1950.0,15.8203]
[1688361711869,12.22704944,1950.4,1950.0,17.88570265]
[1688361712458,0.03122944,1950.4,1950.0,17.88570265]
[1688361712659,0.03122944,1950.4,1950.1,1.58173971]
[1688361712862,2.0,1950.5,1950.2,10.25534]
[1688361713362,2.0,1950.5,1950.2,10.52307971]
[1688361714265,7.12639,1950.7,1950.2,14.52700668]
[1688361714573,5.12665,1950.6,1950.2,14.52700668]
[1688361716268,10.2533,1950.6,1950.2,14.52700668]
[1688361720399,7.12648,1950.7,1950.2,14.52700668]
[1688361720599,7.26915,1950.8,1950.2,15.84100668]
[1688361720776,7.26915,1950.8,1950.4,10.25404]
[1688361720777,10.25247,1950.8,1950.4,10.25404]
[1688361722183,10.25247,1950.8,1950.4,12.81761]
[1688361722665,10.25247,1950.8,1950.4,5.12702]
[1688361722666,14.77612,1950.8,1950.4,5.12702]
[1688361724119,14.77612,1950.8,1950.2,16.00920697]
[1688361724120,17.33490816,1950.8,1950.2,16.00920697]
[1688361724284,17.33490816,1950.8,1950.3,8.1274]
[1688361724958,17.33490816,1950.8,1950.3,3.0]
[1688361725705,17.33490816,1950.8,1950.3,8.12738]
[1688361726864,17.33490816,1950.8,1950.3,3.0]
[1688361727066,2.0,1950.5,1950.0,6.44205]
[1688361727407,10.25453,1950.4,1950.0,6.48566264]
[1688361727781,12.26113,1950.4,1950.0,1.35761264]
[1688361728406,14.81991816,1950.4,1950.0,10.25626]
[1688361728560,14.81991816,1950.4,1950.0,5.12808]
[1688361728903,14.81991816,1950.4,1950.0,10.25628]
[1688361729067,14.81991816,1950.4,1950.0,5.12808]
[1688361729267,9.69263816,1950.4,1950.0,12.82038]
[1688361730204,9.69263816,1950.4,1950.0,10.25628]
[1688361730417,14.81988816,1950.4,1950.0,5.12808]
[1688361732895,2.0,1950.2,1949.9,0.54407451]
[1688361733096,2.0,1950.2,1949.9,0.41279164]
[1688361733097,10.25588,1950.1,1949.9,0.41279164]
[1688361733288,1.025588,1950.0,1949.7,5.12893]
[1688361733486,14.52842,1950.1,1949.6,10.38680666]
[1688361733718,9.40024,1950.1,1949.6,10.38680666]
[1688361734024,14.52837,1950.1,1949.6,5.25764666]
[1688361734380,14.52837,1950.1,1949.7,3.0]
[1688361734584,17.09234,1950.1,1949.7,3.0]
[1688361735031,17.09234,1950.1,1949.6,3.0]
[1688361735335,14.52837,1950.1,1949.6,13.67419583]
[1688361735624,14.52837,1950.1,1949.6,13.27419583]
[1688361737699,17.09234,1950.1,1949.6,8.14501583]
[1688361737887,17.09234,1950.1,1949.6,3.01590583]
[1688361738091,1.709234,1950.0,1949.6,8.14511583]
[1688361738311,1.709234,1950.0,1949.6,3.01590583]
[1688361738312,10.25704,1949.9,1949.6,3.01590583]
[1688361738523,10.25704,1949.9,1949.6,10.67433583]
[1688361738733,4.55878816,1950.0,1949.6,13.23895583]
[1688361738734,9.68713816,1950.0,1949.6,13.23895583]
[1688361740633,9.68713816,1950.0,1949.6,13.50669554]
[1688361743638,14.81542816,1950.0,1949.6,13.50669554]
[1688361745140,2.0,1950.0,1949.7,0.26773971]
[1688361745445,2.0,1950.0,1949.8,10.25746]
[1688361746241,7.12824,1950.0,1949.8,10.25746]
[1688361746660,2.0,1950.0,1949.8,10.25746]
[1688361747539,4.2723,1950.1,1949.8,10.25746]
[1688361747740,1.9949,1950.1,1949.8,10.25746]
[1688361748243,7.12285,1950.1,1949.8,10.25746]
[1688361748417,1.9949,1950.1,1949.8,10.25746]
[1688361749812,7.12287,1950.1,1949.8,10.25746]
[1688361750451,12.25084,1950.1,1949.8,10.25746]
[1688361755523,13.932309,1950.1,1949.8,10.25746]
[1688361756505,13.932309,1950.1,1949.8,5.12873]
[1688361756801,13.932309,1950.1,1949.8,5.53349284]
[1688361758374,19.05506716,1950.1,1949.8,0.40476284]
[1688361758705,5.12846,1949.9,1949.7,10.25774]
[1688361760237,5.12835,1950.0,1949.7,10.67048071]
[1688361760404,7.12297,1950.1,1949.7,14.81671042]
[1688361760830,7.12297,1950.1,1949.7,13.50271042]
[1688361762806,12.25108,1950.1,1949.7,13.23497071]
[1688361765502,12.25108,1950.1,1949.7,10.67048071]
[1688361766872,13.932577,1950.1,1949.7,10.67048071]
[1688361771596,12.25108,1950.1,1949.7,10.67048071]
[1688361775703,14.46618,1950.1,1949.7,10.67048071]
[1688361778428,14.46618,1950.1,1949.8,0.89160727]
[1688361778729,14.46618,1950.1,1949.8,6.02027727]
[1688361779021,14.46618,1950.1,1949.8,5.12867]
[1688361789403,17.02496816,1950.1,1949.8,5.12867]
[1688361789606,19.58893816,1950.1,1949.7,11.20778672]
[1688361789914,19.58893816,1950.1,1949.8,0.89159538]
[1688361790119,19.58893816,1950.1,1949.8,6.02031538]
[1688361790325,19.58893816,1950.1,1949.8,5.12872]
[1688361798253,19.58893816,1950.1,1949.8,10.25745]
[1688361803980,17.02496816,1950.1,1949.8,10.25745]
[1688361806917,2.0,1950.2,1949.8,13.08954971]
[1688361807257,2.0,1950.2,1949.9,0.89156437]
[1688361807456,2.0,1950.2,1950.0,10.2564]
[1688361809158,7.12768,1950.2,1950.0,10.2564]
[1688361809363,7.12768,1950.2,1950.0,5.1282]
[1688361809894,9.07118,1950.2,1950.0,5.1282]
[1688361810607,14.19886,1950.2,1950.0,5.1282]
[1688361813408,14.19886,1950.2,1949.9,10.25664]
[1688361814027,14.19886,1950.2,1949.9,5.12832]
[1688361817388,2.55878816,1950.1,1949.9,5.12841]
[1688361817616,12.81491816,1950.1,1949.9,5.12841]
[1688361818831,7.68674816,1950.1,1949.9,5.12841]
[1688361821524,2.55878816,1950.1,1949.9,5.12841]
[1688361821732,2.0,1950.2,1949.9,12.8211]
[1688361821897,4.55878816,1950.2,1949.9,12.8211]
[1688361828285,4.55878816,1950.2,1949.7,2.26403672]
[1688361828555,6.76838816,1950.2,1949.9,12.8211]
[1688361829037,4.55878816,1950.2,1949.9,12.8211]
[1688361831014,9.68649816,1950.2,1949.9,10.25687]
[1688361831219,11.16789998,1950.2,1949.9,10.25687]
[1688361831449,11.16789998,1950.2,1949.9,5.12841]
[1688361831757,13.10209998,1950.2,1949.9,5.12841]
[1688361834935,13.10209998,1950.2,1949.9,10.25687]
[1688361835137,11.62069816,1950.2,1949.9,10.25687]
[1688361835332,11.62069816,1950.2,1949.9,12.8211]
[1688361836025,6.49298816,1950.2,1949.9,12.8211]
[1688361848000,11.62069816,1950.2,1949.9,12.8211]
[1688361872054,16.74840816,1950.2,1949.9,12.8211]
[1688361872276,16.74840816,1950.2,1949.9,10.25687]
[1688361872277,18.42324898,1950.2,1949.9,10.25687]
[1688361873543,2.55878816,1950.1,1949.7,4.72674071]
[1688361873743,5.12825,1950.0,1949.8,5.12859]
[1688361873949,7.68703816,1950.0,1949.8,10.25722]
[1688361874352,9.73273816,1950.0,1949.8,10.25722]
[1688361877286,9.73273816,1950.0,1949.8,5.12859]
[1688361880598,2.55878816,1949.9,1949.7,0.41274071]
[1688361880933,2.55878816,1949.9,1949.5,8.12943]
[1688361880934,5.12873,1949.8,1949.5,8.12943]
[1688361881112,7.23673,1949.8,1949.5,8.12943]
[1688361881320,9.79551816,1949.8,1949.5,3.0]
[1688361881479,14.92424816,1949.8,1949.5,8.12939]
[1688361881685,14.92424816,1949.8,1949.5,3.0]
[1688361881882,9.79551816,1949.8,1949.5,3.0]
[1688361882227,9.79551816,1949.8,1949.5,8.12951]
[1688361883280,4.66678816,1949.8,1949.5,8.12951]
[1688361883483,9.79551816,1949.8,1949.5,8.12951]
[1688361884234,9.79551816,1949.8,1949.5,8.5392244]
[1688361885121,4.66678816,1949.8,1949.5,8.5392244]
[1688361885709,4.66678816,1949.8,1949.5,13.6687444]
[1688361886726,4.66678816,1949.8,1949.5,8.5392244]
[1688361886942,9.79555816,1949.8,1949.5,8.5392244]
[1688361887299,11.47039898,1949.8,1949.5,3.4097144]
[1688361888253,2.55878816,1949.7,1949.5,0.4097144]
[1688361888592,15.38145816,1949.7,1949.4,1.56266713]
[1688361888796,17.52295816,1949.7,1949.4,1.56266713]
[1688361889091,10.94233417,1949.6,1949.4,6.69243713]
[1688361889303,7.68830816,1949.5,1949.4,1.56266713]
[1688361890186,2.55878816,1949.5,1949.4,1.56266713]
[1688361890772,2.55878816,1949.5,1949.4,6.69244713]
[1688361890966,2.55878816,1949.5,1949.4,7.1112816]
[1688361891467,2.55878816,1949.5,1949.4,12.2410616]
[1688361897100,4.3934,1949.7,1949.4,12.2410616]
[1688361897297,6.95218816,1949.7,1949.4,12.2410616]
[1688361897512,2.2519,1949.7,1949.4,17.72995776]
[1688361897664,2.0,1949.8,1949.4,17.72995776]
[1688361897864,4.55878816,1949.8,1949.4,17.72995776]
[1688361898460,9.68754816,1949.8,1949.4,17.72995776]
[1688361900709,14.81630816,1949.8,1949.4,17.72995776]
[1688361901070,9.68754816,1949.8,1949.4,17.72995776]
[1688361901270,14.81630816,1949.8,1949.4,17.72995776]
[1688361901981,14.81630816,1949.8,1949.4,16.41795776]
[1688361902165,16.87120816,1949.8,1949.4,16.41795776]
[1688361902903,18.99940816,1949.8,1949.4,16.41795776]
[1688361903470,14.81630816,1949.8,1949.4,16.41795776]
[1688361903695,14.81630816,1949.8,1949.6,5.12925]
[1688361903696,4.55878816,1949.8,1949.6,5.12925]
[1688361903871,2.0,1949.8,1949.6,5.12925]
[1688361904075,5.1285,1949.9,1949.6,10.2585]
[1688361905917,10.257,1949.9,1949.6,10.2585]
[1688361907882,4.28062374,1950.0,1949.6,11.5725]
[1688361908082,11.95220816,1950.0,1949.7,1.15725]
[1688361908307,11.95220816,1950.0,1949.7,11.41498]
[1688361908614,6.82388816,1950.0,1949.7,11.41498]
[1688361908807,11.95210816,1950.0,1949.7,11.41498]
[1688361909411,11.95215816,1950.0,1949.7,11.41498]
[1688361909578,6.82388816,1950.0,1949.7,11.41498]
[1688361909775,11.95212816,1950.0,1949.7,11.41498]
[1688361910111,19.08036816,1950.0,1949.7,11.41498]
[1688361912273,19.08036816,1950.0,1949.7,10.25773]
[1688361925529,19.08036816,1950.0,1949.7,11.57173]
[1688361925530,2.1369,1950.0,1949.7,11.57173]
[1688361925697,0.01552374,1950.2,1949.8,1.306]
[1688361925698,2.1342,1950.2,1949.8,1.306]
[1688361925941,2.55878816,1950.2,1949.9,12.82084]
[1688361926123,2.55878816,1950.2,1949.9,10.25661]
[1688361926543,15.37797816,1950.2,1949.8,6.541442]
[1688361926845,15.37797816,1950.2,1949.8,10.25719]
[1688361927050,2.1279,1950.1,1949.8,10.25719]
[1688361927207,5.1282,1950.0,1949.8,10.25719]
[1688361927608,5.1282,1950.0,1949.8,5.12857]
[1688361930752,5.1282,1950.0,1949.8,10.2573]
[1688361931964,12.38398,1950.1,1949.8,10.2573]
[1688361933314,2.1279,1950.1,1949.8,14.103836]
[1688361933518,2.55878816,1950.2,1949.8,14.103836]
[1688361934948,12.25418,1950.3,1949.8,14.103836]
[1688361935150,14.81296816,1950.3,1949.8,14.103836]
[1688361938179,1.999,1950.3,1949.8,15.417836]
[1688361938320,2.0,1950.6,1950.1,10.25582]
[1688361938524,4.49838816,1950.5,1950.1,12.81979]
[1688361939868,9.31098,1950.6,1950.1,12.81979]
[1688361940076,11.86976816,1950.6,1950.2,1.281979]
[1688361940226,13.80936816,1950.6,1950.3,10.25472]
[1688361945067,13.80936816,1950.6,1950.3,12.81842]
[1688361946088,11.25058,1950.6,1950.3,12.81842]
[1688361946254,7.14164374,1950.8,1950.3,14.3598599]
[1688361946582,9.69127816,1950.7,1950.3,14.3598599]
[1688361947337,7.13249,1950.7,1950.3,14.3598599]
[1688361960188,2.006,1950.7,1950.3,14.3598599]
[1688361962552,2.006,1950.7,1950.3,12.81842]
[1688361962708,7.13241,1950.7,1950.3,12.81842]
[1688361970959,2.006,1950.7,1950.3,12.81842]
[1688361971314,7.13239,1950.7,1950.3,12.81842]
[1688361971814,2.006,1950.7,1950.3,12.81842]
[1688361972012,7.13238,1950.7,1950.3,12.81842]
[1688361972564,2.006,1950.7,1950.3,12.81842]
[1688361973042,2.006,1950.7,1950.3,14.488037]
[1688361974564,1.302,1951.1,1950.3,15.794037]
[1688361974874,1.9358,1951.0,1950.6,12.8163]
[1688361975088,2.0,1951.2,1950.6,12.8163]
[1688361975089,2.0,1951.2,1950.7,1.28163]
[1688361975259,2.0199,1951.1,1950.8,5.12597]
[1688361975657,2.0199,1951.1,1950.8,10.25207]
[1688361977350,2.0199,1951.1,1950.8,12.81512]
[1688361980090,7.14524,1951.1,1950.8,12.81512]
[1688361980418,7.14524,1951.1,1950.8,14.224795]
[1688361983127,12.27058,1951.1,1950.8,14.224795]
[1688361983279,12.27058,1951.1,1950.8,11.661745]
[1688361994482,12.27058,1951.1,1950.8,10.25207]
[1688361998900,2.25392374,1951.3,1950.9,1.314]
[1688361998901,2.2384,1951.3,1950.9,1.314]
[1688361999060,4.3404,1951.3,1951.0,10.25104]
[1688362001493,4.3404,1951.3,1951.0,12.81382]
[1688362003481,4.3404,1951.3,1951.0,14.226602]
[1688362009187,4.3404,1951.3,1951.0,14.62888251]
[1688362028288,5.13993374,1951.5,1951.0,14.62888251]
[1688362028541,4.2777338,1951.7,1951.1,3.89095397]
[1688362028542,2.2427,1951.7,1951.1,3.89095397]
[1688362028692,3.9993,1951.8,1951.3,12.8119]
[1688362029027,3.9993,1951.8,1951.3,13.07963971]
[1688362029028,1.9993,1951.8,1951.3,13.07963971]
[1688362029436,1.9993,1951.8,1951.3,12.8119]
[1688362029734,1.9993,1951.8,1951.4,1.28119]
[1688362030037,1.9993,1951.8,1951.5,12.81052]
[1688362030401,1.9993,1951.8,1951.5,14.12452]
[1688362040440,1.9993,1951.8,1951.5,14.54405606]
[1688362042048,0.0069742,1951.9,1951.5,13.23005606]
[1688362042199,0.0069742,1951.9,1951.6,1.32300561]
[1688362042410,7.2152942,1951.9,1951.6,6.44682561]
[1688362042748,7.2152942,1951.9,1951.6,11.57082561]
[1688362045857,7.2152942,1951.9,1951.6,14.13282561]
[1688362046088,7.2152942,1951.9,1951.7,1.41328256]
[1688362046219,0.0069742,1951.9,1951.8,10.24694]
[1688362052356,0.0069742,1951.9,1951.8,12.80867]
[1688362058506,0.0069742,1951.9,1951.8,5.12347]
[1688362058801,0.0069742,1951.9,1951.8,10.24694]
[1688362058963,0.0069742,1951.9,1951.8,6.58772218]
[1688362061392,0.0069742,1951.9,1951.8,11.71119218]
[1688362074389,0.0069742,1951.9,1951.8,6.58772218]
[1688362074585,0.0069742,1951.9,1951.7,10.66753919]
[1688362076805,0.0069742,1951.9,1951.7,10.2471]
[1688362088119,0.0069742,1951.9,1951.7,10.0916068]
[1688362089632,0.0069742,1951.9,1951.6,5.53804188]
[1688362089633,5.1301842,1951.9,1951.6,5.53804188]
[1688362089816,0.51301842,1951.8,1951.6,5.53804188]
[1688362090159,2.073,1951.8,1951.6,5.53804188]
[1688362090354,2.073,1951.8,1951.6,10.2478]
[1688362092120,2.073,1951.8,1951.6,12.8098]
[1688362096464,7.21206374,1951.8,1951.4,5.12441]
[1688362096776,0.72120637,1951.7,1951.5,5.12421]
[1688362098755,0.72120637,1951.7,1951.4,5.12436]
[1688362099164,16.08939453,1951.7,1951.3,3.0]
[1688362099368,4.55878816,1951.6,1951.2,5.63745]
[1688362099688,4.55878816,1951.6,1951.2,10.7625]
[1688362099689,13.43227761,1951.6,1951.2,10.7625]
[1688362099848,18.55643761,1951.6,1951.2,5.63745]
[1688362101148,18.55643761,1951.6,1951.2,10.7625]
[1688362101374,5.87385554,1951.5,1951.2,10.7625]
[1688362101863,5.87385554,1951.5,1951.2,5.63745]
[1688362102262,10.99816554,1951.5,1951.2,5.63745]
[1688362102467,10.99816554,1951.5,1951.2,10.7625]
[1688362102851,5.87385554,1951.5,1951.2,10.7625]
[1688362104767,10.99816554,1951.5,1951.2,5.63745]
[1688362106547,10.99816554,1951.5,1951.2,6.64736479]
[1688362106994,10.99816554,1951.5,1951.2,7.04788726]
[1688362108426,10.99816554,1951.5,1951.2,6.03797247]
[1688362108711,10.99816554,1951.5,1951.2,0.91292247]
[1688362108712,1.09981655,1951.4,1951.2,0.91292247]
[1688362108906,5.12471,1951.4,1951.2,0.40052247]
[1688362109225,5.12471,1951.4,1951.1,10.25029]
[1688362109507,12.36902,1951.4,1951.1,5.12508]
[1688362110502,12.36902,1951.4,1951.1,5.54129211]
[1688362112722,12.36902,1951.4,1951.1,0.41621211]
[1688362113073,12.36902,1951.4,1951.0,13.25083]
[1688362114331,12.36902,1951.4,1951.0,15.81361]
[1688362114533,7.24431,1951.4,1951.0,15.81361]
[1688362114856,7.24431,1951.4,1951.0,16.21968155]
[1688362115361,12.36883,1951.4,1951.0,16.21968155]
[1688362115873,4.55878816,1951.3,1951.0,0.40607155]
[1688362116159,4.55878816,1951.3,1950.9,5.12563]
[1688362116160,5.12505,1951.2,1950.9,5.12563]
[1688362116333,9.79213816,1951.2,1950.9,10.25129]
[1688362117187,9.79213816,1951.2,1950.9,10.66044161]
[1688362117680,14.91718816,1951.2,1950.9,10.66044161]
[1688362120064,9.79213816,1951.2,1950.9,10.66044161]
[1688362122731,4.66708816,1951.2,1950.9,10.66044161]
[1688362130351,4.66444216,1951.2,1950.9,10.66044161]
[1688362135702,4.66444216,1951.2,1950.9,11.97444161]
[1688362135974,4.66444216,1951.2,1950.9,16.29109877]
[1688362140506,4.66179616,1951.2,1950.9,16.29109877]
[1688362149141,0.41759923,1951.6,1950.9,16.29109877]
[1688362149142,7.12389,1951.7,1951.1,14.12695]
[1688362149448,7.12389,1951.7,1951.3,12.81185]
[1688362149449,1.9722,1951.6,1951.3,12.81185]
[1688362149605,1.9722,1951.6,1951.3,14.093035]
[1688362156837,1.9722,1951.6,1951.3,15.407035]
[1688362157355,7.1302242,1951.9,1951.4,1.314]
[1688362157648,11.68031236,1951.9,1951.5,12.81034]
[1688362157808,9.1215242,1951.9,1951.7,5.12373]
[1688362160142,14.2448242,1951.9,1951.7,5.12373]
[1688362160503,9.1215242,1951.9,1951.7,5.12373]
[1688362164643,14.2447342,1951.9,1951.7,5.12373]
[1688362173408,18.49414278,1951.9,1951.4,4.3688]
[1688362173573,18.49414278,1951.9,1951.4,5.12435]
[1688362173574,23.28724278,1951.9,1951.4,5.12435]
[1688362175288,24.58924278,1951.9,1951.4,5.12435]
[1688362181194,24.58924278,1951.9,1951.4,10.24887]
[1688362181895,23.28724278,1951.9,1951.4,10.24887]
[1688362186410,21.59662236,1951.9,1951.4,11.83240707]
[1688362186607,21.59662236,1951.9,1951.4,14.39466707]
[1688362189959,21.59662236,1951.9,1951.4,15.70866707]
[1688362190162,4.2297742,1951.9,1951.4,14.66240678]
[1688362190310,0.0069742,1951.9,1951.6,1.314]
[1688362190650,2.0069742,1951.9,1951.7,10.24746]
[1688362204408,2.0069742,1951.9,1951.7,12.80932]
[1688362204610,2.0069742,1951.9,1951.7,14.13116446]
[1688362216324,2.0069742,1951.9,1951.7,12.80932]
[1688362219334,2.0069742,1951.9,1951.7,10.24746]
[1688362227356,7.1301942,1951.9,1951.7,10.24746]
[1688362229853,7.1301942,1951.9,1951.3,4.43605549]
[1688362229854,14.81220236,1951.9,1951.3,4.43605549]
[1688362230189,14.81220236,1951.9,1951.5,5.12423]
[1688362230767,2.0383,1951.8,1951.5,5.12423]
[1688362231084,12.28554,1951.8,1951.4,3.0]
[1688362231575,12.28554,1951.8,1951.4,8.12447]
[1688362233795,12.28554,1951.8,1951.4,13.24899]
[1688362235460,7.16192,1951.8,1951.4,13.24899]
[1688362239323,7.16192,1951.8,1951.4,14.96659554]
[1688362240218,2.55878816,1951.7,1951.4,13.24899]
[1688362240414,7.68267816,1951.7,1951.4,13.24899]
[1688362240720,12.80656816,1951.7,1951.4,13.24899]
[1688362241523,7.68267816,1951.7,1951.4,15.81125]
[1688362243480,7.68267816,1951.7,1951.4,13.24899]
[1688362245256,7.68267816,1951.7,1951.4,15.81125]
[1688362246355,2.55878816,1951.7,1951.4,15.81125]
[1688362246555,7.68252816,1951.7,1951.4,15.81125]
[1688362247457,9.16696298,1951.7,1951.4,12.81125]
[1688362247678,2.0,1951.6,1951.0,3.18774549]
[1688362247816,12.80764816,1951.5,1951.2,5.12479]
[1688362248014,12.80764816,1951.5,1951.1,10.25034]
[1688362248339,12.80764816,1951.5,1951.2,0.89096887]
[1688362248539,2.0345,1951.4,1951.2,0.89096887]
[1688362248712,12.28379,1951.4,1951.2,0.89096887]
[1688362249225,12.28379,1951.4,1951.2,6.01595887]
[1688362249437,7.15904,1951.4,1951.2,10.25004]
[1688362249627,2.0345,1951.4,1951.2,10.25004]
[1688362250655,2.0345,1951.4,1951.2,12.81256]
[1688362251016,2.0345,1951.4,1951.2,14.093816]
[1688362253232,2.0345,1951.4,1951.2,12.81256]
[1688362253656,0.005,1951.4,1951.2,12.81256]
[1688362259663,0.005,1951.4,1951.2,13.22790019]
[1688362260292,0.005,1951.4,1951.2,14.53390019]
[1688362261050,0.005,1951.4,1951.2,13.22790019]
[1688362261986,10.25413,1951.4,1951.2,0.41534019]
[1688362262194,13.83828416,1951.4,1951.0,9.46193948]
[1688362262395,7.26104,1951.3,1951.0,8.12549]
[1688362263461,7.26104,1951.3,1951.0,13.25106]
[1688362264372,7.26104,1951.3,1951.0,13.66963185]
[1688362265265,7.26104,1951.3,1951.0,16.23241185]
[1688362265664,2.1361,1951.3,1951.0,16.23241185]
[1688362267368,2.1361,1951.3,1951.0,18.05378952]
[1688362272311,2.1361,1951.3,1951.0,16.23241185]
[1688362273985,2.1361,1951.3,1951.0,16.22741185]
[1688362278630,2.1361,1951.3,1951.1,1.314]
[1688362278767,2.1361,1951.3,1951.2,10.2501]
[1688362289352,0.01552374,1951.5,1951.2,10.2501]
[1688362289516,2.0984,1951.5,1951.2,14.225293]
[1688362290118,7.22267,1951.5,1951.2,12.81262]
[1688362292451,5.12356,1951.8,1951.4,14.12502]
[1688362292626,7.24456,1951.8,1951.4,14.12502]
[1688362293599,2.121,1951.8,1951.4,14.12502]
[1688362293752,2.121,1951.8,1951.4,15.537522]
[1688362299250,2.121,1951.8,1951.4,14.12502]
[1688362303566,2.121,1951.8,1951.4,14.53527587]
[1688362306672,9.3477142,1951.9,1951.4,14.53527587]
[1688362306999,11.2805142,1951.9,1951.4,13.22127587]
[1688362316203,11.27651573,1951.9,1951.4,13.22127587]
[1688362316430,16.39981573,1951.9,1951.4,13.22127587]
[1688362316705,16.39981573,1951.9,1951.4,14.93103746]
[1688362337512,16.39981573,1951.9,1951.5,0.89085146]
[1688362337712,16.39981573,1951.9,1951.6,5.12394]
[1688362338076,18.95860389,1951.9,1951.5,5.12402]